Cogmind - Beta 13 @@@ ROGUE MODE // 2024.04.07 @ 23:13:19 Player: Fractal Result: Destroyed by 3X-RBE(R) with Subdweller Machine Gun Performance ------------- Evolutions (0) 0 Regions Visited (2) 400 Robots Destroyed (26) 130 Value Destroyed (601) 601 Prototype IDs (0) 0 Alien Tech Used (0) 0 Bonus (0) 0 TOTAL SCORE: 1131 Bonus ------- None Cogmind --------- Core Integrity 0/250 Matter 243/300 Energy 100/100 System Corruption 0% Temperature Cool (0) Movement Rolling (110) Location -10/Subcaves Parts ------- > --- POWER (1) -------- (None) > --- PROPULSION (2) --- Subdweller Monowheel > --- UTILITY (2) ------ Medium Storage Unit > --- WEAPON (2) ------- Small Laser Subdweller Machine Gun > --- INVENTORY (10) --- Ion Engine Aluminum Leg Aluminum Leg Large Storage Unit Signal Interpreter Terrain Scan Processor ECM Suite Datajack Scrap Shield Fragment (39) Peak State ------------ > --- POWER ------------ Light Nuclear Core > --- PROPULSION ------- Aluminum Leg Aluminum Leg > --- UTILITY ---------- Medium Storage Unit Improved Terrain Scanner > --- WEAPON ----------- Subdweller Machine Gun Grenade Launcher > --- INVENTORY -------- Ion Engine Aluminum Leg Aluminum Leg Large Storage Unit Signal Interpreter Terrain Scan Processor ECM Suite Small Laser Light Assault Rifle Datajack [Rating: 13] Favorites ----------- Power Light Ion Engine Engine Light Ion Engine Power Core Light Nuclear Core Propulsion Aluminum Leg Leg Aluminum Leg Wheel Subdweller Monowheel Utility Medium Storage Unit Device Improved Terrain Scanner Storage Medium Storage Unit Weapon Light Assault Rifle Energy Gun EM Pulse Gun Ballistic Gun Light Assault Rifle Launcher Grenade Launcher Special Melee Weapon Datajack Build | -11 -10 -10 ------- Run | Yrd Mat Sub Slots Evolved . | . . . Power . | . . . Propulsion . | . . . Utility . | . . . Weapon . | . . . Parts Attached 30 | 6 16 8 Power 4 | 1 3 . Engine 3 | 1 2 . Core 1 | . 1 . Reactor . | . . . Propulsion 7 | 1 5 1 Treads . | . . . Leg 6 | 1 5 . Wheel 1 | . . 1 Hover . | . . . Flight . | . . . Utility 4 | 2 2 . Device 2 | 1 1 . Storage 2 | 1 1 . Processor . | . . . Hackware . | . . . Protection . | . . . Artifact . | . . . Weapon 15 | 2 6 7 Energy Gun 3 | 1 1 1 Energy Cannon . | . . . Ballistic Gun 7 | 1 2 4 Ballistic Cannon . | . . . Launcher 4 | . 3 1 Special Weapon . | . . . Impact Weapon . | . . . Slashing Weapon . | . . . Piercing Weapon . | . . . Special Melee Weapon 1 | . . 1 Unidentified Prototypes . | . . . Parts Lost 9 | . 2 7 Power 2 | . 1 1 Propulsion 2 | . . 2 Utility 1 | . . 1 Weapon 4 | . 1 3 Highest Loss Streak 3 | . 1 3 To Critical Strikes . | . . . Average Slot Usage (%) 88 | . 96 78 Engine 6 | . 12 . Core 4 | . . 8 Leg 23 | . 28 17 Wheel 1 | . . 3 Device 11 | . 14 7 Storage 14 | . 14 14 Energy Gun 8 | . 11 5 Ballistic Gun 12 | . 13 11 Launcher 3 | . . 8 Naked Turns . | . . . Heaviest Build 23 | 12 20 23 Greatest Support 20 | 10 20 20 Greatest Overweight (x) 4 | 1 . 4 Average Overweight (x) . | . . . Largest Inventory Capacity 10 | 8 10 10 Average Capacity 9 | 7 9 10 Most Carried 10 | 3 10 10 Average Carried 7 | 2 7 9 Final Capacity 10 | 8 10 10 Final Carried 9 | 3 9 9 Class Distribution -------------------- 72% | Mutant 27% | Scavenger-Mutant Dominant Class ---------------- Mutant | -10/Materials Scavenger-Mutant | -10/Subcaves Resources | -11 -10 -10 ----------- Run | Yrd Mat Sub Matter Collected 612 | 267 188 157 Remotely . | . . . Salvage Created 754 | 139 365 250 Parts 62 | 11 28 23 Haulers Intercepted . | . . . Recyclers Shooed . | . . . Parts Field Recycled . | . . . Retrieved Matter . | . . . Parts Self-Destructed 5 | . . 5 Prevented . | . . . Kills | -11 -10 -10 ------- Run | Yrd Mat Sub Combat Hostiles Destroyed 19 | . 12 7 Guns 10 | . 7 3 AOE 9 | . 5 4 Classes Destroyed 10 | 2 5 3 Worker 1 | . 1 . Builder 1 | . 1 . Tunneler 3 | 2 1 . Recycler 1 | 1 . . Operator 1 | . 1 . Swarmer 7 | . 6 1 Grunt 6 | . 6 . Sentry 1 | . . 1 Artisan 1 | . . 1 Subdweller 5 | . . 5 Best Kill Streak 6 | 2 6 2 Combat Bots Only 4 | . 4 2 Max Kills in Single Turn 4 | 1 4 2 Gunslinging . | . . . Exploded 2 | . 2 2 Melee . | . . . Uniques/NPCs Destroyed . | . . . Combat | -11 -10 -10 -------- Run | Yrd Mat Sub Hostile Shots Fired 98 | . 41 57 Missed 37 | . 13 24 Damage Taken 1085 | . 368 717 Core 255 | . 68 187 Absorbed by Shields . | . . . Core Remaining (%) 100 | 100 . . Volleys Fired 86 | 7 44 35 Largest 2 | 2 2 2 Hottest 70 | 60 70 70 Shots Fired 133 | 14 71 48 Gun 120 | 14 66 40 Cannon . | . . . Launcher 13 | . 5 8 Special . | . . . Kinetic 63 | 7 37 19 Thermal 25 | . 4 21 Explosive 13 | . 5 8 Electromagnetic 32 | 7 25 . Robot Hit Streak 9 | 3 6 9 Robot Miss Streak 3 | 2 3 2 Penetration Max . | . . . Secondary Targets . | . . . Shots Hit Robots 78 | 7 36 35 Core Hits 48 | 4 29 15 Critical Kills 1 | . . 1 Critical Parts Destroyed . | . . . Critical Strikes 3 | . . 3 Destroy 3 | . . 3 Melee Attacks 5 | . . 5 Impact . | . . . Slashing . | . . . Piercing . | . . . Sneak Attacks . | . . . Combat Hostiles . | . . . Follow-up Attacks . | . . . Damage Inflicted 1402 | 68 708 626 Guns 728 | 68 352 308 Cannons . | . . . Explosions 674 | . 356 318 Melee . | . . . Ramming . | . . . Kinetic 354 | 29 159 166 Thermal 179 | . 37 142 Explosive 648 | . 330 318 Electromagnetic 221 | 39 182 . Impact . | . . . Slashing . | . . . Piercing . | . . . Highest Corruption . | . . . Average Corruption . | . . . Corruption Purged . | . . . Corruption Blocked . | . . . Overload Shots . | . . . Overflow Damage 7 | . 7 . Projectiles . | . . . Explosions 7 | . 7 . Melee . | . . . Knockbacks . | . . . Impact . | . . . Kinetic . | . . . Secondary . | . . . Self-Inflicted Damage 65 | . 65 . Shots 2 | . 2 . Rammed . | . . . Targets Rammed . | . . . Kicked . | . . . Crushed . | . . . Highest Temperature 88 | 20 88 . Average Temperature 20 | 14 21 . Received Heat Transfer 207 | . 138 69 Siege Activations . | . . . Robots Corrupted . | . . . Combat Hostiles . | . . . Parts Fried . | . . . Impact Corruptions . | . . . Robots Melted . | . . . Combat Hostiles . | . . . Parts Melted 1 | . . 1 Heat Transferred 400 | . 75 325 Parts Sabotaged . | . . . Parts Stolen . | . . . Parts Stripped . | . . . Power Chain Reactions 1 | . 1 . Alert | -11 -10 -10 ------- Run | Yrd Mat Sub Peak Influence 248 | 15 248 . Initial 9 | . 9 . Average 108 | 7 125 . Maximum Alert Level 1 | . 1 . Low Security (%) 70 | 100 65 . Level 1 29 | . 34 . Level 2 . | . . . Level 3 . | . . . Level 4 . | . . . Level 5 . | . . . High Security . | . . . Max Security . | . . . Squads Dispatched 2 | . 2 . Investigation . | . . . Extermination . | . . . Reinforcement 2 | . 2 . Assault . | . . . Garrison . | . . . Intercept . | . . . Searches Triggered . | . . . Construction Impeded . | . . . Haulers Reinforced . | . . . Active Scanning Responses . | . . . Cargo Convoy Interrupts . | . . . Stealth | -11 -10 -10 --------- Run | Yrd Mat Sub Distress Signals 2 | . 2 . Communications Jammed . | . . . Distress Signals . | . . . Times Spotted 30 | . 17 13 Peak Tracking Total 4 | . 4 3 Tactical Retreats 1 | . . 1 Traps | -11 -10 -10 ------- Run | Yrd Mat Sub Traps Triggered 1 | . 1 . Indirectly . | . . . Trap Hack Attempts . | . . . Triggered . | . . . Disarmed . | . . . Reprogrammed . | . . . Reused . | . . . Traps Extracted . | . . . Installed . | . . . Triggered . | . . . Machines | -11 -10 -10 ---------- Run | Yrd Mat Sub Machines Disabled 2 | . 2 . Max in Single Turn 1 | . 1 . Machines Repaired . | . . . Machines Dismantled . | . . . Machines Sabotaged . | . . . Overloaded Fab Kills . | . . . Hacking | -11 -10 -10 --------- Run | Yrd Mat Sub Machines Accessed 6 | . 6 . Terminals 5 | . 5 . Fabricators . | . . . Repair Stations . | . . . Recycling Units 1 | . 1 . Scanalyzers . | . . . Garrison Access . | . . . Total Hacks 16 | . 16 . Successful 5 | . 5 . Failed 11 | . 11 . Catastrophic 5 | . 5 . Database Lockouts . | . . . Manual 6 | . 6 . Terminals 13 | . 13 . Fabricators . | . . . Repair Stations . | . . . Recycling Units 3 | . 3 . Scanalyzers . | . . . Garrison Access . | . . . Terminal Hacks 4 | . 4 . Terminal Index 1 | . 1 . Locate Traps 1 | . 1 . Recall Investigation 1 | . 1 . Zone Layout 1 | . 1 . Fabricator Hacks . | . . . Repair Station Hacks . | . . . Recycling Unit Hacks 1 | . 1 . Retrieve Components 1 | . 1 . Scanalyzer . | . . . Garrison Access Hacks . | . . . Unauthorized Hacks . | . . . Terminals . | . . . Fabricators . | . . . Repair Stations . | . . . Recycling Units . | . . . Scanalyzers . | . . . Garrison Access . | . . . Data Cores Recovered . | . . . Used . | . . . Hacking Detections 4 | . 4 . Full Trace Events 1 | . 1 . Feedback Events . | . . . Feedback Blocked . | . . . Robot Schematics Acquired . | . . . Robots Built . | . . . Authchips . | . . . Time . | . . . Total Robot Build Rating . | . . . Part Schematics Acquired . | . . . Parts Built . | . . . Authchips . | . . . Time . | . . . Total Part Build Rating . | . . . Parts Repaired . | . . . Time . | . . . Parts Recycled . | . . . Recycled Matter . | . . . Retrieved Matter . | . . . Retrieved Components 3 | . 3 . Parts Scanalyzed . | . . . Part Schematics Acquired . | . . . Parts Damaged . | . . . Bothacking | -11 -10 -10 ------------ Run | Yrd Mat Sub Used RIF Installer . | . . . Robots Hacked . | . . . Non-combat . | . . . Combat . | . . . Robot Hacks Applied . | . . . Relay Couplers Released . | . . . Fabnet Peak Effective % . | . . . Robots Rewired . | . . . Allies Hacked . | . . . Hacks Repelled . | . . . Allies | -11 -10 -10 -------- Run | Yrd Mat Sub Total Allies . | . . . Largest Group . | . . . Highest-Rated Group . | . . . Highest-Rated Ally . | . . . Total Orders . | . . . Ally Attacks . | . . . Total Damage . | . . . Kills . | . . . Allies Corrupted . | . . . Allies Melted . | . . . Intel | -11 -10 -10 ------- Run | Yrd Mat Sub Robot Analysis Total . | . . . Derelict Logs Recovered 1 | . . 1 Drone Launches . | . . . Drone Recoveries . | . . . Exploration | -11 -10 -10 ------------- Run | Yrd Mat Sub Turns Passed 1656 | 141 822 693 Spaces Moved 1009 | 64 518 427 Core 16 | 3 . 13 Treads . | . . . Legs 854 | 61 518 275 Wheels 139 | . . 139 Hover . | . . . Flight . | . . . Fastest Speed 50 | 50 120 110 Average Speed 131 | 173 120 138 Slowest Speed 250 | 190 120 250 Overloaded Moves . | . . . Propulsion Burnouts . | . . . Robots Hopped . | . . . Cave-ins Triggered . | . . . Exploration Rate (%) 32 | 4 79 14 Regions Visited 2 Branch Regions 1 Pre-discovered Areas . | . . . Known Exits Taken . | . . . Unknown Exits Taken 2 | 1 1 . Scrap Searched . | . . . Spaces Dug . | . . . Terrain Destroyed 80 | . 28 52 Melee . | . . . Projectile . | . . . AOE 80 | . 28 52 Terrain Rammed . | . . . Walls Destroyed . | . . . Machines Disabled . | . . . Actions | -11 -10 -10 --------- Run | Yrd Mat Sub Total 1212 | 79 655 478 Wait 61 | . 61 . Move 1007 | 63 517 427 Hop . | . . . Pick Up 13 | 3 9 1 Fast Attach 12 | 6 2 4 Attach 4 | . 2 2 Detach 1 | . . 1 Swap 14 | . 12 2 Drop 9 | . 8 1 Fire 86 | 7 44 35 Melee 5 | . . 5 Ram . | . . . Kick . | . . . Crush . | . . . Escape Stasis . | . . . Rewire . | . . . Trap . | . . . Miscellaneous . | . . . Route ------- -11/Scrapyard -10/Materials (discovered 4 exits: [*Mat x2] / [*Min] / [*Sub]) -10/Subcaves History --------- Turn | Location | Event 8 | -11/Scrapyard | Discovered new exit (range 16) 142 | -11/Scrapyard | Entered Materials 303 | -10/Materials | Build established: Mutant 532 | -10/Materials | Discovered new exit (range 11) 596 | -10/Materials | Discovered new exit (range 12) 778 | -10/Materials | Discovered new exit (range 10) 950 | -10/Materials | Discovered new exit (range 11) 964 | -10/Materials | Entered Subcaves 969 | -10/Subcaves | Learned Materials security intel 1003 | -10/Subcaves | Ambushed by angry Subdweller bent on revenge 1190 | -10/Subcaves | Build established: Scavenger-Mutant 1416 | -10/Subcaves | Lost 3 parts (1p1n1w) 1448 | -10/Subcaves | Ambushed by Subdweller buried in earth 1449 | -10/Subcaves | Core integrity fell below 50% 1452 | -10/Subcaves | Core integrity fell below 20% 1479 | -10/Subcaves | Lost 3 parts (1n2w) 1644 | -10/Subcaves | Build established: Mutant 1657 | -10/Subcaves | Destroyed by 3X-RBE(R) with Subdweller Machine Gun Last Messages --------------- 66-ILE(R): "ARGHSUB!" Subatomizers dissect the Sub. Laser, destroying it. 66-ILE(R) affixes Scrap Shield Fragment to Scrap Shield. 66-ILE(R) destroyed. Acquired 10 matter. Acquired 43 matter. Subatomizers dissect the Sub. Optics. Acquired Sub. Machine Gun. Acquired 21 matter. Subatomizers dissect the Sub. Optics. Acquired Sub. Monowheel. Subatomizers dissect the Sub. Optics. Subatomizers dissect the Disposable Heat Sink, destroying it. Acquired Scrap Shield Fragment. Subatomizers dissect the Disposable Heat Sink. K0-AXQ(R) suffers critical hit (Destroy). Map ----- +----------------------------------------------------+ | ????????????????????????????????????????????? | | ????????????????????#????#????#??????#??????? | | ??????????????????????????????#?????????????? | | ???????????????????????????????##???????????# | | ??????????????????#?????????????#?????????#?? | | ?????????????????????????#????????????#??#### | | ???????????????????#????#????######??????# | | ????????????????????????##??## ######## | | ??????????????#?????????????# "# "" | | ???????????????????????####?## " " | | ???????????????????##### ##### | | ????????#???????#?##"" "####### | | ???????????????####""" ####### " | | ?????????#?????#" "" # #####" | | ???????????????#"" ## ##" #### # | | ???????????????##"#?# " ## | | ???????????#???#""#?# # ## ## ##### | | ???????????????#" #?# #################?#?# | | ?????????????#?? ?# ##???????????????#??# | | ???????????????## #?## "#?????????????#????## | | ??????????????## ##?#" #?????#??#?????#????# | | ????????????????# ###" #???????????????#???? | | ????????????????# RR #????????????#??????? | | ????????????????## #?????????#?????#???? | | ?????????????????# #???????????????#???? | | ?????????????????# @ ##?#???????????#?#???# | | ?????????????????# #?#?????????#????????? | | ?????????????????## #???????????????????? | | ??????????????????# #?????????????#?????? | | ?????????????????# #??????????????#????? | | ?????????????????# ##???????????????????? | | ?????????????????# ##????????????????????? | | ????????????????? #?????????????????????? | | ????????????????# #?????????????????????? | | ???????????????? ##?????????????????????? | | ???????????????# #??????????????????????? | | ???????????????# ??????????????????????? | | ???????????????# ??????????????????????? | | ???????????????# ??????????????????????? | | ????????????????# ## ??????????????????????? | | ?????????????????? ?????????????????????????? | | ????????????????????????????????????????????? | | ????????????????????????????????????????????? | | ????????????????????????????????????????????? | | ????????????????????????????????????????????? | | ????????????????????????????????????????????? | | ????????????????????????????????????????????? | | ????????????????????????????????????????????? | | ????????????????????????????????????????????? | | ????????????????????????????????????????????? | +----------------------------------------------------+ Best States ------------- Heat Dissipation 25 Energy Generation 14 Energy Capacity 160 Matter Stores 300 Matter Capacity 300 Sight Range 16 Terrain Scan Range 16 Terrain Scan Density 10 Evasion (%) 55 Item Schematics ----------------- None Robot Schematics ------------------ None Fabricated ------------ Nothing Alien Tech Used ----------------- None Achievements -------------- None Challenges ------------ None Game ------ Seed MobileGrapheneInitializer Manual? 0 Play Time 00:17:04 Cumulative 26.5 hours Start 2024.04.07 @ 22:57:47 End 2024.04.07 @ 23:13:19 Sessions 1 Manual Loads 0 Difficulty Rogue Special Mode None Game No. 35 Rogue 35 Adventurer 0 Explorer 0 Win Type - Total 0 Types 0/0/0/0/0/0/0/0/0 Lore% 18 Gallery% 23 Achievement% 17 Wizard Run 0 Options --------- Layout 1 ASCII 0 Keyboard 1 Movement Numpad Keybinds 0 Fullscreen 1 Font 48/Terminus Map View 50x35 Zoom Use 0% Tactical HUD 0 Map Filters NONE Filters NONE Steam 1 RUN: 2881b4fa-0a2d-49ce-ad93-2ee4ecb7ef76